bitfinex/quotes_ETHUSD_20250219
["timestamp","ask_amount","ask_price","bid_price","bid_amount"]
[1739981723905,3.68502,2713.7,2713.1,7.37143]
[1739981724104,3.68502,2713.7,2713.1,3.6857]
[1739981724311,3.68502,2713.7,2713.2,3.68567]
[1739981725161,0.8053,2713.8,2713.3,3.68554]
[1739981725495,4.6370718,2714.1,2713.4,0.7868]
[1739981725803,3.68479,2713.9,2713.4,6.1568]
[1739981726199,4.6370718,2714.1,2713.4,6.1568]
[1739981726357,4.6370718,2714.1,2713.5,3.68516]
[1739981726562,4.6370518,2714.1,2713.4,9.84211]
[1739981726895,3.68472,2714.0,2713.4,9.84219]
[1739981727128,0.9525918,2714.1,2713.8,3.68479]
[1739981727330,0.1492918,2714.1,2713.8,3.68479]
[1739981727496,0.1492918,2714.1,2714.0,4.46069]
[1739981727687,0.1492918,2714.1,2714.0,9.86753279]
[1739981727905,0.1492918,2714.1,2714.0,11.53090272]
[1739981729731,0.1492918,2714.1,2714.0,7.07021272]
[1739981729933,0.1492918,2714.1,2714.0,5.37]
[1739981730538,3.8337518,2714.1,2714.0,5.37]
[1739981730882,0.1492918,2714.1,2714.0,5.37]
[1739981731650,3.8337518,2714.1,2714.0,5.37]
[1739981731940,3.68482,2713.9,2713.5,5.37]
[1739981732140,3.68488,2713.8,2713.3,5.37]
[1739981732648,3.68489,2713.8,2713.3,5.37]
[1739981733002,3.68473,2713.9,2713.3,5.99264875]
[1739981733196,0.7657,2714.0,2713.4,0.7936]
[1739981733511,0.1492918,2714.1,2713.6,3.68507]
[1739981734226,0.1492918,2714.1,2714.0,3.68459]
[1739981734416,0.1492918,2714.1,2714.0,9.05459]
[1739981734629,0.1492918,2714.1,2714.0,5.37]
[1739981735035,0.1492918,2714.1,2714.0,9.05459]
[1739981735250,0.1492918,2714.1,2714.0,11.131914]
[1739981736616,0.1492918,2714.1,2714.0,7.447324]
[1739981736816,0.1492918,2714.1,2714.0,5.37]
[1739981737015,0.1492918,2714.1,2714.0,9.05459]
[1739981737453,0.1492918,2714.1,2714.0,9.83919]
[1739981739323,0.1492918,2714.1,2714.0,5.37]
[1739981739964,0.1492918,2714.1,2713.7,5.37]
[1739981740256,3.68479,2713.9,2713.7,5.37]
[1739981740557,3.68486,2713.8,2713.7,5.37]
[1739981740920,4.46162,2713.7,2713.2,5.37]
[1739981741122,3.68522,2713.6,2713.2,5.37]
[1739981741662,0.7766,2713.7,2713.2,5.37]
[1739981742361,4.46161,2713.7,2713.2,5.37]
[1739981743831,3.68527,2713.5,2713.2,5.37]
[1739981744062,3.68546,2713.4,2713.2,5.37]
[1739981744462,3.68546,2713.4,2713.0,5.37]
[1739981744659,3.68556,2713.3,2713.0,5.37]
[1739981745268,3.68582,2713.1,2713.0,5.37]
[1739981745475,0.821,2713.0,2712.7,5.37]
[1739981746178,0.821,2713.3,2712.8,3.68622]
[1739981746327,3.6853,2713.5,2712.8,3.68622]
[1739981746769,3.68527,2713.5,2712.8,3.6861]
[1739981746927,4.50623,2713.6,2712.8,3.6861]
[1739981747131,8.19145,2713.6,2713.0,3.68592]
[1739981747473,0.821,2713.6,2713.0,3.68592]
[1739981747642,4.50616,2713.6,2713.0,4.054512]
[1739981747825,4.50616,2713.6,2712.7,7.167649]
[1739981747826,3.68563,2713.3,2712.7,7.167649]
[1739981748277,3.68537,2713.5,2712.8,3.68609]
[1739981748627,3.68549,2713.4,2712.8,3.68609]
[1739981748961,4.44833,2713.9,2713.1,3.68572]
[1739981749165,4.44833,2713.9,2713.3,3.68554]
[1739981749863,0.7635,2713.9,2713.3,3.68554]
[1739981750065,4.4483,2713.9,2713.3,3.68554]
[1739981751882,4.4483,2713.9,2713.1,9.05571]
[1739981752029,3.68489,2713.8,2713.2,3.68558]
[1739981752230,4.4483,2713.9,2713.3,3.68543]
[1739981752651,3.8337818,2714.1,2713.5,3.68521]
[1739981752948,3.68466,2714.0,2713.4,4.48583]
[1739981753324,3.68466,2714.0,2713.4,9.85583]
[1739981753527,3.8337818,2714.1,2713.5,3.68527]
[1739981754129,3.8337818,2714.1,2713.4,6.1705]
[1739981754669,0.1492918,2714.1,2713.6,3.68513]
[1739981755027,0.1492918,2714.1,2713.6,3.68507]
[1739981755240,0.1492918,2714.1,2713.6,5.039142]
[1739981755759,0.1492918,2714.1,2713.6,10.409142]
[1739981755927,0.1492918,2714.1,2713.6,6.724072]
[1739981756124,0.1492918,2714.1,2714.0,3.68459]
[1739981756330,0.1492918,2714.1,2714.0,13.54327442]
[1739981756529,0.1492918,2714.1,2714.0,19.70807286]
[1739981762175,0.1492918,2714.1,2714.0,28.62807286]
[1739981762735,0.7913,2715.7,2715.2,3.68286]
[1739981762935,0.7913,2715.7,2715.4,3.6826]
[1739981763241,0.7913,2715.7,2715.3,3.68272]
[1739981763557,0.7913,2715.7,2715.2,5.37]
[1739981763759,4.47366,2715.7,2715.2,5.37]
[1739981764182,0.7913,2715.7,2715.3,3.68279]
[1739981764475,0.7913,2715.7,2715.2,5.37]
[1739981764698,3.68283,2715.3,2715.2,5.37]
[1739981764861,4.44073,2715.3,2715.2,5.37]
[1739981765989,0.7579,2715.3,2715.2,5.37]
[1739981766498,0.7997,2715.6,2715.2,9.05296]
[1739981766983,0.7997,2715.6,2715.2,5.37]
[1739981767158,0.7997,2715.6,2715.2,9.05285]
[1739981767360,4.06689159,2716.1,2715.4,3.68261]
[1739981767598,3.68203,2715.9,2715.3,3.68283]
[1739981767975,0.8058,2716.0,2715.2,5.37]
[1739981768152,3.68283,2715.3,2715.2,5.37]
[1739981768353,4.45493,2715.3,2715.2,5.37]
[1739981768552,0.7721,2715.3,2715.2,5.37]
[1739981769195,3.68317,2715.1,2714.9,5.37]
[1739981769380,1.217581,2715.3,2714.9,5.37]
[1739981769707,3.68312,2715.1,2714.9,5.37]
[1739981769904,4.900481,2715.3,2714.9,5.37]
[1739981770104,1.217581,2715.3,2714.9,5.37]
[1739981770405,0.7975,2714.7,2714.6,5.37]
[1739981770552,0.7975,2714.7,2714.3,5.37]
[1739981770931,0.7975,2714.7,2714.4,3.68403]
[1739981771701,0.8226,2715.0,2714.4,3.68403]
[1739981771860,0.27945635,2715.5,2714.3,5.37]
[1739981771861,4.5055,2715.3,2714.6,3.68377]
[1739981772227,3.68299,2715.2,2714.7,5.37]
[1739981772410,0.8226,2715.3,2714.7,5.37]
[1739981772709,3.6832,2715.1,2714.7,5.37]
[1739981772910,3.68337,2714.9,2714.7,5.37]
[1739981773089,4.50611,2714.8,2714.7,5.37]
[1739981773294,1.641549,2714.8,2714.3,5.37]
[1739981773494,0.8226,2714.8,2714.3,5.37]
[1739981773662,3.68319,2715.1,2714.4,0.815]
[1739981774001,0.8226,2715.2,2714.5,7.36772]
[1739981774204,4.50558,2715.2,2714.6,3.68371]
[1739981774383,3.68313,2715.1,2714.5,3.68391]
[1739981774696,3.68313,2715.1,2714.5,5.03921]
[1739981774995,3.68323,2715.1,2714.5,5.03912]
[1739981775181,3.68323,2715.1,2714.5,8.72296]
[1739981775380,4.50559,2715.2,2714.6,3.68366]
[1739981775571,0.8226,2715.2,2714.5,5.03912]
[1739981775897,3.68318,2715.1,2714.5,8.72296]
[1739981776097,7.3664,2715.1,2714.5,5.03912]
[1739981776306,4.50563,2715.2,2714.6,3.68369]
[1739981776458,0.8226,2715.2,2714.7,3.68358]
[1739981776797,4.50563,2715.2,2714.6,4.269162]
[1739981776993,0.8226,2715.2,2714.7,3.68356]
[1739981777367,0.8226,2715.2,2714.6,5.955412]
[1739981777708,0.8226,2715.2,2714.7,3.68363]
[1739981778079,3.6827,2715.4,2714.8,3.68339]
[1739981778397,3.6827,2715.4,2714.7,4.7830042]
[1739981778605,3.6827,2715.4,2714.8,3.68349]
[1739981779013,0.7711,2715.5,2714.7,1.0994342]
[1739981779211,3.6827,2715.4,2714.8,3.68347]
[1739981779414,4.45372,2715.5,2714.8,4.75725162]
[1739981779899,4.45372,2715.5,2714.9,3.68333]
[1739981780069,0.7711,2715.5,2714.8,1.07383162]
[1739981780483,4.45367,2715.5,2714.9,3.68331]
[1739981780702,0.7711,2715.5,2715.0,3.68323]
[1739981780862,0.7711,2715.5,2715.1,3.68309]
[1739981781302,0.7711,2715.5,2715.0,3.68323]
[1739981781602,0.7711,2715.5,2715.0,4.60420816]
[1739981781786,3.68207,2715.9,2715.1,9.05307]
[1739981781991,3.68222,2715.8,2715.2,3.6829]
[1739981782391,0.7696,2715.9,2715.3,3.68283]
[1739981782577,0.7696,2715.9,2715.5,3.68248]
[1739981782982,0.7696,2715.9,2715.1,9.05308]
[1739981783306,0.7696,2715.9,2715.5,3.68248]
[1739981784100,0.7696,2715.9,2715.3,3.68276]
[1739981784289,4.06637361,2716.4,2715.7,3.6822]
[1739981784502,0.8168,2716.7,2715.9,0.8082]
[1739981784684,3.68117,2716.6,2715.9,0.8082]
[1739981785019,4.130867,2716.6,2715.9,0.8082]
[1739981785221,3.6813,2716.5,2715.8,9.05207]
[1739981785517,4.130867,2716.6,2716.0,3.68185]
[1739981785704,0.449797,2716.6,2716.0,3.68185]
[1739981785879,0.8168,2716.7,2716.2,3.68154]
[1739981786073,0.8168,2716.7,2716.3,5.37]
[1739981787006,0.8168,2716.7,2716.3,9.05147]
[1739981788097,0.9402918,2716.9,2716.5,3.68107]
[1739981788280,0.1492918,2716.9,2716.5,8.97997]
[1739981788479,0.1492918,2716.9,2716.5,9.69092931]
[1739981789996,3.8299718,2716.9,2716.5,5.37]
[1739981790183,0.7621,2716.7,2716.5,5.37]
[1739981791044,0.9374918,2716.9,2716.5,5.37]
[1739981791220,0.1492918,2716.9,2716.5,5.37]
[1739981792012,3.8300218,2716.9,2716.5,5.37]
[1739981792211,0.7882,2716.6,2716.5,5.37]
[1739981792731,4.46927,2716.6,2716.5,5.37]
[1739981793133,3.68142,2716.4,2716.0,5.37]
[1739981793490,7.36289,2716.4,2716.0,5.37]
[1739981793835,3.68163,2716.2,2716.0,5.37]
[1739981794034,4.834403,2716.1,2716.0,5.37]
[1739981794332,3.6822,2715.8,2715.4,5.37]
[1739981794485,0.7845,2715.5,2715.4,5.37]
[1739981795208,0.7845,2715.8,2715.4,5.37]
[1739981795542,0.7541,2716.1,2715.4,6.1707]
[1739981795744,3.6815,2716.3,2715.7,3.68217]
[1739981795888,0.7541,2716.4,2715.8,3.68207]
[1739981796083,0.7541,2716.4,2715.9,5.37]
[1739981796290,3.68196,2716.0,2715.6,5.37]
[1739981796489,3.68202,2715.9,2715.4,5.37]
[1739981796784,0.7853,2716.0,2715.4,5.37]
[1739981797218,4.46719,2716.0,2715.4,5.37]
[1739981797419,3.68222,2715.8,2715.4,5.37]
[1739981797944,1.232013,2716.0,2715.4,5.37]
[1739981798240,4.43696,2715.5,2715.2,5.37]
[1739981798951,3.68271,2715.4,2715.2,5.37]
[1739981799151,4.43723,2715.3,2715.2,5.37]
[1739981799449,3.68334,2715.0,2714.5,5.37]
[1739981799658,3.68354,2714.8,2714.5,5.37]
[1739981799951,0.8028,2715.3,2714.5,9.05381]
[1739981800112,3.68308,2715.2,2714.5,11.25583]
[1739981800456,0.8028,2715.3,2714.5,6.799]
[1739981800748,0.7552,2714.7,2714.5,5.37]
[1739981801046,4.43897,2714.7,2714.5,5.37]
[1739981801659,3.68378,2714.6,2714.5,5.37]
[1739981801947,0.7552,2714.7,2714.5,5.37]
[1739981802156,3.68378,2714.6,2714.5,5.37]
[1739981802537,0.7552,2714.7,2714.5,5.37]
[1739981802850,3.68378,2714.6,2714.5,5.37]
[1739981803053,4.43888,2714.7,2714.5,5.37]
[1739981803847,0.7552,2714.7,2714.2,3.68429]
[1739981804034,3.68344,2714.9,2714.3,0.8259]
[1739981804340,0.7675,2715.0,2714.4,3.68405]
[1739981804544,0.7675,2715.0,2714.4,3.68397]
[1739981804899,0.7863,2715.4,2714.7,3.68364]
[1739981805341,0.7863,2715.4,2714.8,5.37]
[1739981805551,0.7863,2715.4,2714.9,1.731164]
[1739981805848,3.68297,2715.2,2715.0,5.37]
[1739981806044,3.68295,2715.3,2715.0,5.37]
[1739981806291,3.6831,2715.1,2715.0,5.37]
[1739981806587,3.68295,2715.3,2715.0,5.37]
[1739981806754,3.6831,2715.1,2715.0,5.37]
[1739981806956,3.68309,2715.2,2715.0,5.37]
[1739981807385,3.6831,2715.1,2715.0,5.37]
[1739981807886,3.68309,2715.2,2715.0,5.37]
[1739981808085,3.68307,2715.2,2715.0,5.37]
[1739981808241,3.6831,2715.1,2715.0,5.37]
[1739981808443,3.68307,2715.2,2715.0,5.37]
[1739981809105,0.7863,2715.4,2715.0,5.37]
[1739981809306,4.46907,2715.4,2715.0,5.37]
[1739981809609,3.68285,2715.3,2715.0,5.37]
[1739981809975,3.68305,2715.2,2715.0,5.37]
[1739981810176,3.6831,2715.1,2715.0,5.37]
[1739981810393,4.419706,2715.1,2715.0,5.37]
[1739981811610,5.210606,2715.1,2715.0,5.37]
[1739981811808,3.68366,2714.7,2714.3,5.37]
[1739981811979,3.68378,2714.6,2714.3,5.37]
[1739981812165,0.7551,2714.5,2714.3,5.37]
[1739981812362,4.43908,2714.5,2714.3,5.37]
[1739981814234,3.6834,2714.9,2714.3,5.37]
[1739981814431,0.8156,2714.9,2714.4,3.68405]
[1739981814726,0.8156,2715.2,2714.5,3.68389]
[1739981814952,4.49863,2715.2,2714.5,3.68389]
[1739981815133,0.8156,2715.2,2714.6,3.68366]
[1739981815299,0.8156,2715.2,2714.7,3.68359]
[1739981815499,0.8156,2715.2,2714.6,7.36736]
[1739981815698,0.8156,2715.2,2714.7,3.68363]
[1739981816116,4.49866,2715.2,2714.7,3.68363]
[1739981816281,4.49866,2715.2,2714.6,6.183646]
[1739981816282,8.18175,2715.2,2714.6,6.183646]
[1739981816477,3.68333,2715.0,2714.6,5.37]
[1739981816789,3.68317,2715.1,2714.6,5.37]
[1739981817179,0.8156,2715.2,2714.6,5.37]
[1739981817384,4.49864,2715.2,2714.6,9.05378]
[1739981817591,3.68265,2715.5,2714.8,3.68342]
[1739981817798,4.50555,2715.5,2714.8,5.03871]
[1739981817998,0.8229,2715.5,2715.0,3.68322]
[1739981818409,4.50509,2715.8,2715.1,3.68304]
[1739981818885,0.8229,2715.8,2715.1,3.68304]
[1739981819082,4.50506,2715.8,2715.1,3.68303]
[1739981819323,0.38511795,2715.9,2715.4,3.68268]
[1739981819622,4.50419,2716.5,2715.7,0.8158]
[1739981819786,3.68135,2716.4,2715.7,9.86807]
[1739981819988,8.18549,2716.5,2715.7,9.86807]
[1739981820197,4.50419,2716.5,2715.7,6.1858]
[1739981820399,0.450419,2716.4,2715.7,6.1858]
[1739981820690,3.68168,2716.2,2715.7,5.37]
[1739981820884,3.63168,2716.2,2715.7,5.37]
[1739981821992,3.68196,2716.0,2715.7,5.37]
[1739981822195,0.8143,2715.9,2715.7,5.37]
[1739981822406,0.8143,2716.3,2715.5,9.05244]
[1739981822628,4.49582,2716.3,2715.6,3.68239]
[1739981822825,0.8143,2716.3,2715.8,3.68204]
[1739981823026,0.7905,2716.6,2715.6,0.7802]
[1739981823237,0.1492918,2716.9,2716.6,3.68107]
[1739981823407,0.1492918,2716.9,2716.8,3.6808]
[1739981823928,0.1492918,2716.9,2716.6,6.518307]
[1739981824300,0.1492918,2716.9,2716.7,3.68092]
[1739981824731,0.1492918,2716.9,2716.6,6.518307]
[1739981825053,0.1492918,2716.9,2716.6,5.37]
[1739981825409,0.1492918,2716.9,2716.6,6.643245]
[1739981825615,0.1492918,2716.9,2716.6,9.05095]
[1739981825926,0.1492918,2716.9,2716.7,3.68093]
[1739981826271,0.1492918,2716.9,2716.8,9.8804]
[1739981826763,0.1492918,2716.9,2716.8,12.8804]
[1739981827931,0.1492918,2716.9,2716.8,9.8804]
[1739981828131,0.1492918,2716.9,2716.8,11.236533]
[1739981828324,0.1492918,2716.9,2716.8,14.236533]
[1739981828730,0.1492918,2716.9,2716.8,23.156533]
[1739981828915,0.005,2717.7,2716.9,3.0]
[1739981829115,0.005,2717.7,2717.6,7.49301]
[1739981829355,0.005,2717.7,2717.6,24.24524722]
[1739981829765,0.7631,2719.1,2717.6,23.43194722]
[1739981830060,0.005,2719.3,2718.5,3.67837]
[1739981830272,0.005,2719.3,2718.5,5.652]
[1739981830429,3.67764,2719.2,2718.5,5.37]
[1739981830627,0.368264,2719.1,2718.5,5.37]
[1739981831071,0.005,2719.3,2718.5,5.3099]
[1739981831651,3.67786,2719.0,2718.5,5.3099]
[1739981831847,0.7777,2719.2,2718.0,0.282]
[1739981832011,4.45535,2719.2,2718.1,3.67901]
[1739981832217,4.45535,2719.2,2718.4,3.67862]
[1739981832519,3.6779,2719.0,2718.1,3.67903]
[1739981832850,3.67824,2718.7,2718.0,0.282]
[1739981833057,0.808,2718.6,2718.0,5.3099]
[1739981833461,4.48636,2718.6,2718.0,5.3099]
[1739981834041,3.67853,2718.5,2718.0,5.3099]
[1739981834239,0.816489,2718.4,2718.0,5.3099]
[1739981834477,0.005,2718.5,2718.0,5.3099]
[1739981834824,3.6835,2718.5,2718.0,5.3099]
[1739981835172,0.005,2718.5,2718.0,5.3099]
[1739981835323,3.67868,2718.4,2718.0,5.3099]
[1739981835523,3.67863,2718.4,2717.6,5.3099]
[1739981835719,0.368368,2718.3,2717.6,5.3099]
[1739981836248,0.368368,2718.3,2717.6,8.98961]
[1739981836481,0.368368,2718.3,2717.6,5.3099]
[1739981836961,4.047168,2718.3,2717.6,5.3099]
[1739981837132,0.7725798,2718.2,2717.6,5.3099]
[1739981837468,3.67925,2718.0,2717.6,5.3099]
[1739981837638,3.67946,2717.8,2717.3,5.3099]
[1739981837959,0.7715,2717.9,2717.3,5.3099]
[1739981838925,0.7715,2717.9,2717.3,8.98994]
[1739981839125,1.216554,2717.9,2717.3,5.3099]
[1739981839771,3.67952,2717.8,2717.3,5.3099]
[1739981840075,1.216554,2717.9,2717.3,5.3099]
[1739981840601,1.216554,2717.9,2717.3,8.98992]
[1739981840899,0.005,2718.5,2717.8,3.67944]
[1739981841046,0.005,2718.5,2717.9,5.3099]
[1739981841542,3.67863,2718.4,2717.9,5.3099]
[1739981841949,0.005,2718.5,2717.9,5.3099]
[1739981842159,4.126613,2718.4,2717.9,5.3099]
[1739981842575,0.447973,2718.4,2717.9,5.3099]
[1739981843090,3.6788,2718.3,2717.9,5.3099]
[1739981843397,3.67864,2718.4,2717.9,5.3099]
[1739981843603,0.005,2718.5,2717.9,5.3099]
[1739981843795,3.67904,2718.1,2717.9,5.3099]
[1739981843979,3.67932,2717.9,2717.2,12.67026]
[1739981844141,0.811986,2717.9,2717.5,3.67982]
[1739981844374,8.17973,2718.3,2717.5,3.67982]
[1739981844690,0.822,2718.3,2717.3,3.68002]
[1739981844847,3.67919,2718.0,2717.3,3.68002]
[1739981845041,3.67929,2718.0,2717.2,5.3099]
[1739981845246,3.67929,2718.0,2717.2,8.99005]
[1739981845447,3.67898,2718.2,2717.2,8.99005]
[1739981845448,3.67898,2718.2,2717.3,3.68011]
[1739981845708,0.822,2718.3,2717.2,5.3099]
[1739981845979,3.67914,2718.1,2717.3,3.68004]
[1739981846177,4.75915127,2718.3,2717.2,5.3099]
[1739981846340,4.45026,2717.7,2717.2,5.3099]
[1739981846950,3.68005,2717.4,2717.2,5.3099]
[1739981847496,4.45025,2717.7,2717.2,5.3099]
[1739981847651,0.7706,2717.7,2717.2,5.3099]
[1739981847846,4.4502,2717.7,2717.2,5.3099]
[1739981848051,4.492707,2717.6,2717.2,5.3099]
[1739981848283,0.812967,2717.6,2717.2,5.3099]
[1739981848682,4.492697,2717.6,2717.2,5.3099]
[1739981848995,8.172517,2717.6,2717.2,5.3099]
[1739981849200,3.67989,2717.5,2717.2,5.3099]
[1739981849554,4.492697,2717.6,2717.2,5.3099]
[1739981849776,3.68011,2717.4,2717.2,5.3099]
[1739981849980,0.5263297,2717.5,2717.2,5.3099]
[1739981850147,0.7706,2717.7,2717.2,5.3099]
[1739981850349,0.7965,2718.0,2717.4,3.67991]
[1739981850687,0.7965,2718.0,2717.4,8.98987]
[1739981850883,0.7965,2718.0,2717.4,5.3099]
[1739981851059,3.67973,2717.6,2717.4,5.3099]
[1739981851917,3.67985,2717.5,2717.4,5.3099]
[1739981852217,3.6805,2717.1,2716.8,5.3099]
[1739981852415,3.68047,2717.1,2716.6,0.7537]
[1739981853126,0.7699,2717.5,2716.6,4.43475]
[1739981853285,4.894764,2717.5,2716.7,3.68086]
[1739981853491,3.68005,2717.4,2716.7,3.68086]
[1739981853930,3.68032,2717.2,2716.6,6.329335]
[1739981854089,3.68032,2717.2,2716.6,4.43477]
[1739981854491,3.68032,2717.2,2716.6,0.7537]
[1739981854692,3.68054,2717.0,2716.6,0.7537]
[1739981855435,3.6804,2717.1,2716.6,0.7537]
[1739981855592,3.68032,2717.2,2716.6,4.43473]
[1739981855790,3.68041,2717.1,2716.6,0.7537]
[1739981856216,3.68056,2717.0,2716.6,0.7537]
[1739981856386,1.214854,2717.5,2716.6,0.7537]
[1739981856597,3.68032,2717.2,2716.6,0.7537]
[1739981856992,3.68048,2717.1,2716.6,0.7537]
[1739981857194,3.68028,2717.2,2716.6,9.74466]
[1739981857492,3.68053,2717.0,2716.6,6.0636]
[1739981859392,3.87585265,2717.4,2716.6,6.0636]
[1739981859588,3.6809,2716.8,2716.6,5.3099]
[1739981859827,3.6809,2716.8,2716.3,0.764]
[1739981859828,3.68093,2716.7,2716.4,5.3099]
[1739981860000,3.68108,2716.6,2716.4,5.3099]
[1739981860324,3.6809,2716.8,2716.4,5.3099]
[1739981860524,3.68033,2717.2,2716.4,5.91729]
[1739981860826,3.68092,2716.8,2716.4,5.3099]
[1739981861127,7.36182,2716.8,2716.4,5.3099]
[1739981861426,3.68073,2716.9,2716.4,5.3099]
[1739981861639,3.68092,2716.8,2716.4,5.3099]
[1739981861999,3.68096,2716.7,2716.4,5.3099]
[1739981862625,3.68073,2716.9,2716.4,5.3099]
[1739981862926,2.07747845,2717.3,2716.4,9.966697]
[1739981863124,3.68075,2716.9,2716.4,6.285437]
[1739981863313,3.68076,2716.9,2716.4,6.285437]
[1739981863518,3.6808,2716.8,2716.4,6.285437]
[1739981863716,3.68076,2716.9,2716.4,6.285437]
[1739981864034,3.68048,2717.1,2716.4,6.285437]
[1739981864197,3.68073,2716.9,2716.4,9.966767]
[1739981864400,3.6805,2717.1,2716.5,4.7542067]
[1739981864614,3.6805,2717.1,2716.5,1.0730767]
[1739981864834,3.68054,2717.0,2716.5,1.0730767]
[1739981865034,3.68074,2716.9,2716.5,1.0730767]
[1739981865341,3.68054,2717.0,2716.5,1.0730767]
[1739981865734,3.68073,2716.9,2716.5,1.0730767]
[1739981865937,3.68095,2716.7,2716.4,5.3099]
[1739981866241,3.6808,2716.8,2716.4,5.3099]
[1739981866938,3.68102,2716.7,2716.4,5.3099]
[1739981867099,3.68075,2716.9,2716.4,5.3099]
[1739981867304,3.68075,2716.9,2716.4,8.99122]
[1739981867504,3.68074,2716.9,2716.4,6.653582]
[1739981868025,3.6805,2717.1,2716.4,6.653582]
[1739981868223,3.68052,2717.0,2716.4,6.653582]
[1739981868427,3.68073,2716.9,2716.4,6.653582]
[1739981868739,0.27035147,2717.5,2716.8,3.68073]
[1739981868944,0.7768,2717.6,2717.0,0.8056]
[1739981869101,3.67977,2717.6,2717.1,5.3099]
[1739981869307,3.67952,2717.8,2717.1,5.3099]
[1739981869507,7.35906,2717.8,2717.1,5.3099]
[1739981869708,3.67978,2717.6,2717.1,7.6145673]
[1739981870075,3.67985,2717.5,2717.1,5.3099]
[1739981870719,3.67968,2717.7,2717.1,5.3099]
[1739981870905,3.67973,2717.6,2717.1,5.3099]
[1739981871419,4.4562,2717.9,2717.2,3.68024]
[1739981871742,3.6794,2717.9,2717.2,8.99014]
[1739981872040,3.67939,2717.9,2717.3,4.579114]
[1739981872341,4.46489,2718.1,2717.4,0.812]
[1739981872503,3.67918,2718.0,2717.4,9.80181]
[1739981873141,3.67912,2718.1,2717.4,9.80181]
[1739981873511,3.679,2718.2,2717.6,3.67971]
[1739981873846,3.679,2718.2,2717.4,10.44566896]
[1739981874173,3.679,2718.2,2717.5,3.67985]
[1739981874640,3.679,2718.2,2717.6,3.67971]
[1739981874853,3.67893,2718.2,2717.6,3.67971]
[1739981875742,3.67907,2718.1,2717.5,3.67985]
[1739981876044,3.67907,2718.1,2717.5,3.67982]
[1739981876343,0.7947,2718.4,2717.6,3.67961]
[1739981876543,0.005,2718.5,2717.7,0.7857]
[1739981876709,0.005,2718.5,2718.1,3.67891]
[1739981876903,0.005,2718.5,2718.3,0.7857]
[1739981878262,0.005,2718.5,2718.4,8.98853]
[1739981878469,0.005,2718.5,2718.4,5.3099]
[1739981879168,0.005,2718.5,2718.4,9.77423]
[1739981880437,0.005,2718.5,2718.4,6.0956]
[1739981880765,0.005,2718.5,2718.4,5.3099]
[1739981881169,3.68349,2718.5,2718.4,5.3099]
[1739981881371,0.741192,2718.5,2718.4,5.3099]
[1739981881835,4.419682,2718.5,2718.4,5.3099]
[1739981882030,0.741192,2718.5,2718.4,5.3099]
[1739981882226,0.005,2718.5,2718.4,5.3099]
[1739981884570,0.005,2718.5,2718.4,8.98853]
[1739981884735,0.005,2718.5,2718.4,5.3099]
[1739981884935,0.005,2718.5,2718.4,8.98853]
[1739981885355,0.005,2718.5,2718.4,5.3099]
[1739981885935,0.005,2718.5,2718.4,10.861328]
[1739981886870,0.005,2718.5,2718.4,11.649128]
[1739981888357,0.005,2718.5,2718.4,7.970498]
[1739981888746,0.005,2718.5,2718.4,5.3099]
[1739981889859,0.005,2718.5,2718.4,8.98853]
[1739981890185,0.005,2718.5,2718.4,5.3099]
[1739981893854,3.68357,2718.5,2718.1,5.3099]
[1739981895089,0.005,2718.5,2718.2,3.6789]
[1739981895288,0.005,2718.5,2718.2,3.71568486]
[1739981895494,0.005,2718.5,2718.1,9.887832]
[1739981896289,0.005,2718.5,2718.3,3.6787]
[1739981896491,0.005,2718.5,2718.3,4.472]
[1739981896658,0.005,2718.5,2718.4,0.4472]
[1739981896898,3.68349,2718.5,2718.4,5.3099]
[1739981897098,0.8032,2718.5,2717.4,5.3099]
[1739981897324,3.67899,2718.2,2717.5,3.67978]
[1739981897526,3.67906,2718.1,2717.5,3.67978]
[1739981897826,3.67932,2717.9,2717.5,1.34599]
[1739981898027,3.67952,2717.8,2717.5,5.3099]
[1739981898229,3.67971,2717.6,2717.5,5.3099]
[1739981898433,3.67999,2717.4,2717.2,5.3099]
[1739981898660,0.7746,2717.5,2717.2,5.3099]
[1739981899107,0.7746,2717.9,2717.2,5.3099]
[1739981899296,0.7746,2718.2,2717.3,2.21319]
[1739981899500,4.45812,2718.5,2717.8,3.67933]
[1739981899738,4.45812,2718.5,2717.8,5.3099]
[1739981899739,3.67874,2718.4,2717.8,5.3099]
[1739981900203,3.67874,2718.4,2717.8,8.98934]
[1739981900396,0.7796,2718.5,2717.9,3.67918]
[1739981900618,3.67872,2718.4,2717.8,8.98934]
[1739981900833,4.45817,2718.5,2717.8,12.66869]
[1739981901018,5.37303109,2718.5,2717.8,8.98925]
[1739981901241,0.005,2718.5,2718.3,3.67864]
[1739981901551,0.005,2718.5,2718.1,3.67895]
[1739981901777,3.68352,2718.5,2717.9,0.7902]
[1739981901981,0.005,2718.5,2718.0,3.67916]
[1739981902320,3.67877,2718.3,2717.8,5.3099]
[1739981902520,3.67911,2718.1,2717.8,5.3099]
[1739981902851,0.7833,2717.9,2717.8,5.3099]
[1739981903052,0.7833,2717.9,2717.4,3.67988]
[1739981903053,0.7833,2717.9,2717.6,5.3099]
[1739981903639,0.7833,2717.9,2717.4,5.3099]